bitfinex/quotes_ETHUSD_20230109
["timestamp","ask_amount","ask_price","bid_price","bid_amount"]
[1673233380524,27.64377784,1306.7,1306.3,13.45075485]
[1673233381366,27.64377784,1306.7,1306.4,0.32174386]
[1673233381732,27.64377784,1306.7,1306.4,4.32174386]
[1673233382208,22.95863,1306.7,1306.4,4.32174386]
[1673233383228,22.95863,1306.7,1306.4,0.32174386]
[1673233385208,28.6390992,1306.7,1306.4,0.32174386]
[1673233385885,32.6390992,1306.7,1306.4,0.32174386]
[1673233386099,28.6390992,1306.7,1306.4,0.32174386]
[1673233386312,33.65864907,1306.7,1306.4,0.32174386]
[1673233386938,27.97817987,1306.7,1306.4,0.32174386]
[1673233387256,27.97817987,1306.7,1306.4,4.32174386]
[1673233387569,22.95863,1306.7,1306.4,0.32174386]
[1673233387742,22.95863,1306.7,1306.4,4.32174386]
[1673233388892,22.95863,1306.7,1306.4,0.32174386]
[1673233393978,0.74054,1306.6,1306.4,0.32174386]
[1673233394193,7.65403,1306.5,1306.4,0.32174386]
[1673233395825,23.70169,1306.6,1306.4,0.32174386]
[1673233396387,0.74054,1306.6,1306.5,0.5745]
[1673233396771,0.74054,1306.6,1306.5,23.53659]
[1673233396986,0.74054,1306.6,1306.5,28.42714634]
[1673233397274,0.74054,1306.6,1306.5,17.10823585]
[1673233397457,0.74054,1306.6,1306.5,21.10823585]
[1673233397836,0.74054,1306.6,1306.5,36.41629585]
[1673233398703,0.74054,1306.6,1306.5,28.76226585]
[1673233399096,0.74054,1306.6,1306.5,37.82029585]
[1673233399814,15.46891,1307.0,1306.5,30.16626585]
[1673233400030,15.46891,1307.0,1306.7,4.0]
[1673233400392,15.46891,1307.0,1306.7,4.79848319]
[1673233401078,15.46891,1307.0,1306.7,0.79848319]
[1673233401505,15.46891,1307.0,1306.7,4.79848319]
[1673233402282,15.87586,1307.1,1306.7,16.4403227]
[1673233402617,8.22427,1307.2,1306.7,25.4971827]
[1673233402794,7.8919,1307.2,1306.9,1.392]
[1673233402970,7.8919,1307.2,1307.0,7.6511]
[1673233403182,19.8077,1307.3,1307.0,7.6511]
[1673233403183,0.5741,1307.3,1307.0,7.6511]
[1673233403438,29.56089759,1307.4,1306.9,22.52542495]
[1673233403618,7.64942,1307.3,1307.0,4.0]
[1673233403824,7.64942,1307.3,1307.0,7.05145745]
[1673233404449,15.29884,1307.3,1307.0,7.05145745]
[1673233407011,15.29884,1307.3,1307.0,3.05145745]
[1673233408466,15.29884,1307.3,1307.0,7.05145745]
[1673233408851,15.29884,1307.3,1307.0,3.05145745]
[1673233409529,15.29884,1307.3,1307.0,7.05145745]
[1673233410265,15.65997794,1307.4,1307.0,7.04789648]
[1673233410427,23.30931794,1307.4,1307.0,7.04789648]
[1673233411117,0.72803108,1307.2,1307.0,7.04789648]
[1673233411949,0.72803108,1307.2,1307.0,3.04789648]
[1673233413508,0.72803108,1307.2,1307.0,7.04789648]
[1673233415623,0.72803108,1307.2,1307.1,9.04652]
[1673233415815,0.72803108,1307.2,1307.1,26.08234394]
[1673233416000,0.72803108,1307.2,1307.1,22.42097345]
[1673233416430,8.00790839,1307.4,1307.2,4.0]
[1673233416680,8.00790839,1307.4,1307.2,19.29946]
[1673233416883,8.00790839,1307.4,1307.2,11.64954]
[1673233417176,8.00790839,1307.4,1307.2,13.84302319]
[1673233417386,0.11600839,1307.4,1307.2,13.84302319]
[1673233417592,0.11600839,1307.4,1307.2,17.8323827]
[1673233417918,0.11600839,1307.4,1307.2,6.1826327]
[1673233419848,0.11600839,1307.4,1307.2,4.7876327]
[1673233419849,23.06240839,1307.4,1307.2,4.7876327]
[1673233420058,23.06240839,1307.4,1307.2,3.98914951]
[1673233420845,23.06240839,1307.4,1307.1,3.13878394]
[1673233421053,0.00295955,1307.3,1307.0,15.4264]
[1673233421275,22.94979,1307.2,1307.0,19.41554951]
[1673233421527,22.94979,1307.2,1307.0,12.56344951]
[1673233421528,15.29986,1307.2,1307.0,12.56344951]
[1673233421839,15.75922848,1307.2,1307.0,15.24055446]
[1673233422299,8.10929848,1307.2,1307.0,15.24055446]
[1673233422641,0.45936848,1307.2,1307.0,15.24055446]
[1673233423324,8.10932848,1307.2,1307.0,15.24055446]
[1673233424582,0.45936848,1307.2,1307.0,15.24055446]
[1673233425952,15.75936848,1307.2,1307.0,8.5743]
[1673233426119,8.10929848,1307.2,1307.0,8.5743]
[1673233426471,0.45936848,1307.2,1307.0,8.5743]
[1673233428229,0.45936848,1307.2,1307.0,12.56344951]
[1673233428440,7.64943,1307.3,1307.0,12.56344951]
[1673233428740,15.29886,1307.3,1307.0,16.26528846]
[1673233429131,1.392,1307.1,1306.6,30.61]
[1673233429417,22.9542,1307.0,1306.7,4.0]
[1673233429631,23.41356848,1307.0,1306.7,4.5744]
[1673233429796,0.45936848,1306.9,1306.7,4.5744]
[1673233430000,15.76332848,1306.9,1306.7,4.5744]
[1673233430253,15.76332848,1306.9,1306.7,0.5744]
[1673233430677,23.41549848,1306.9,1306.7,0.5744]
[1673233431787,23.41549848,1306.9,1306.6,12.56354951]
[1673233432149,1.86336848,1306.8,1306.5,19.057]
[1673233432366,1.86336848,1306.8,1306.5,18.4825]
[1673233432367,30.61144,1306.7,1306.5,18.4825]
[1673233432520,31.07080848,1306.7,1306.4,0.89624386]
[1673233432732,31.07376803,1306.7,1306.4,4.88539337]
[1673233433522,34.32154483,1306.7,1306.4,4.88539337]
[1673233433693,34.32154483,1306.7,1306.4,0.89624386]
[1673233434568,34.32154483,1306.7,1306.4,0.89250173]
[1673233435940,0.45936848,1306.6,1306.4,0.89250173]
[1673233436149,0.45936848,1306.6,1306.4,0.31800173]
[1673233436150,22.96209,1306.5,1306.4,0.31800173]
[1673233438958,26.21001385,1306.5,1306.4,0.31800173]
[1673233439619,22.96209,1306.5,1306.4,0.31800173]
[1673233440331,22.95893407,1306.5,1306.4,0.31800173]
[1673233440783,12.69263635,1306.7,1306.4,0.31800173]
[1673233440998,9.44485955,1306.7,1306.4,7.97250173]
[1673233441160,8.0409,1306.7,1306.4,11.97250173]
[1673233441373,8.0409,1306.7,1306.4,7.97250173]
[1673233441622,8.0409,1306.7,1306.4,11.97250173]
[1673233441838,8.0409,1306.7,1306.4,27.28174173]
[1673233442021,8.0409,1306.7,1306.4,30.80046868]
[1673233443071,8.0409,1306.7,1306.4,23.14584868]
[1673233443687,8.0409,1306.7,1306.5,4.0]
[1673233444107,18.4979,1306.8,1306.5,4.0]
[1673233444761,26.15018,1306.8,1306.5,4.0]
[1673233445094,33.80246,1306.8,1306.4,20.52680705]
[1673233445318,41.45474,1306.8,1306.4,20.52680705]
[1673233445619,47.4333678,1306.8,1306.4,20.52680705]
[1673233446416,47.4333678,1306.8,1306.4,17.0080801]
[1673233448967,47.4333678,1306.8,1306.4,13.0080801]
[1673233449184,47.4333678,1306.8,1306.4,17.0080801]
[1673233451392,41.45474,1306.8,1306.4,17.0080801]
[1673233452838,41.91410848,1306.8,1306.4,17.0080801]
[1673233453832,41.91410848,1306.8,1306.5,4.0]
[1673233453989,41.45474,1306.8,1306.5,4.0]
[1673233455148,41.45474,1306.8,1306.4,17.0080801]
[1673233455363,41.45474,1306.8,1306.4,20.97554289]
[1673233456030,41.45474,1306.8,1306.5,4.0]
[1673233456825,33.80246,1306.8,1306.5,4.0]
[1673233457724,26.15018,1306.8,1306.5,4.0]
[1673233458302,33.80246,1306.8,1306.5,4.0]
[1673233460300,41.45474,1306.8,1306.5,4.0]
[1673233461187,46.92210654,1306.8,1306.5,4.0]
[1673233462963,47.38147502,1306.8,1306.5,4.0]
[1673233463394,47.38147502,1306.8,1306.5,3.99658216]
[1673233464341,47.38147502,1306.8,1306.4,17.0080801]
[1673233466080,47.38147502,1306.8,1306.4,13.0080801]
[1673233466294,30.6138,1306.6,1306.4,13.0080801]
[1673233466551,30.6138,1306.6,1306.4,0.3249801]
[1673233467377,30.6138,1306.6,1306.4,4.3249801]
[1673233467598,22.96035,1306.6,1306.4,0.3249801]
[1673233467971,30.6138,1306.6,1306.4,0.3249801]
[1673233468392,26.238692,1306.6,1306.4,0.3249801]
[1673233469762,3.278342,1306.6,1306.4,0.3249801]
[1673233469974,9.82294,1306.7,1306.4,0.3249801]
[1673233470443,17.93562848,1306.7,1306.4,0.3249801]
[1673233470810,25.58894848,1306.7,1306.4,0.3249801]
[1673233472826,24.82332848,1306.7,1306.4,0.3249801]
[1673233474004,17.16908848,1306.7,1306.4,0.3249801]
[1673233474203,22.75621886,1306.7,1306.4,0.3249801]
[1673233474952,30.40907886,1306.7,1306.4,0.3249801]
[1673233476057,30.40907886,1306.7,1306.4,0.8994801]
[1673233476058,22.75621886,1306.7,1306.4,0.8994801]
[1673233476268,17.16908848,1306.7,1306.4,0.8994801]
[1673233476523,24.82194848,1306.7,1306.4,0.8994801]
[1673233478004,24.82194848,1306.7,1306.4,0.3249801]
[1673233478245,5.6804692,1306.9,1306.5,8.22816]
[1673233478365,7.0744692,1307.0,1306.6,18.3069]
[1673233478580,22.3768892,1307.0,1306.7,0.5744]
[1673233479210,14.7256792,1307.0,1306.7,0.5744]
[1673233479633,22.3767792,1307.0,1306.7,0.5744]
[1673233479892,30.0278792,1307.0,1306.7,0.5744]
[1673233480108,30.0277692,1307.0,1306.7,0.5744]
[1673233480262,36.66733397,1307.0,1306.7,0.5744]
[1673233480693,36.66733397,1307.0,1306.6,4.5744]
[1673233481477,5.6804692,1306.9,1306.6,4.5744]
[1673233481671,28.33798951,1306.8,1306.4,0.31800173]
[1673233481860,1.404,1306.7,1306.4,4.31800173]
[1673233482061,17.16933848,1306.7,1306.4,4.31800173]
[1673233482274,24.82244848,1306.7,1306.4,4.31800173]
[1673233482518,0.45936848,1306.6,1306.4,4.31800173]
[1673233482731,8.11316848,1306.6,1306.4,4.31800173]
[1673233483786,0.45936848,1306.6,1306.4,0.31800173]
[1673233484218,8.11316848,1306.6,1306.4,4.31800173]
[1673233484525,23.42076848,1306.6,1306.4,0.31800173]
[1673233485264,26.52813133,1306.6,1306.4,0.31800173]
[1673233487328,23.42076848,1306.6,1306.4,0.31800173]
[1673233488173,5.6804692,1306.9,1306.5,3.98914951]
[1673233488377,13.3321892,1306.9,1306.6,4.0]
[1673233488725,24.97257812,1306.9,1306.5,4.56364951]
[1673233489146,20.9842292,1306.9,1306.5,8.56364951]
[1673233489728,13.3321892,1306.9,1306.5,16.21767951]
[1673233490177,5.6804692,1306.9,1306.5,23.87170951]
[1673233490721,13.3321892,1306.9,1306.5,16.21767951]
[1673233490893,13.3321892,1306.9,1306.5,8.56364951]
[1673233491108,20.9839092,1306.9,1306.5,8.56364951]
[1673233492405,28.6356292,1306.9,1306.5,8.56364951]
[1673233493406,22.95516,1306.9,1306.5,8.56364951]
[1673233493661,28.6356292,1306.9,1306.5,8.56364951]
[1673233493826,5.6804692,1306.9,1306.6,4.0]
[1673233494194,5.6804692,1307.1,1306.7,3.98914951]
[1673233494500,13.3310492,1307.1,1306.8,4.0]
[1673233494677,13.3310492,1307.1,1306.8,5.62163795]
[1673233495030,28.6321492,1307.1,1306.8,1.62163795]
[1673233495272,13.3309892,1307.1,1306.8,1.62163795]
[1673233495453,7.65052,1307.1,1306.8,1.62163795]
[1673233495617,13.3309892,1307.1,1306.8,5.62163795]
[1673233496069,22.95162,1307.1,1306.8,5.62163795]
[1673233496243,15.30104,1307.1,1306.8,5.62163795]
[1673233496448,20.9815092,1307.1,1306.8,5.62163795]
[1673233496675,20.9815092,1307.1,1306.8,1.62163795]
[1673233496890,28.6320892,1307.1,1306.8,1.62163795]
[1673233497107,28.6320892,1307.1,1306.8,5.62163795]
[1673233497659,20.9815092,1307.1,1306.8,1.62163795]
[1673233497869,15.30104,1307.1,1306.8,1.62163795]
[1673233498268,15.30104,1307.1,1306.8,5.62163795]
[1673233498449,15.30104,1307.1,1306.8,1.62163795]
[1673233499431,15.30104,1307.1,1306.8,5.62163795]
[1673233499964,15.30104,1307.1,1306.8,1.62163795]
[1673233500146,34.42542875,1307.2,1306.8,9.27371795]
[1673233500338,34.42542875,1307.2,1306.8,28.56357996]
[1673233500339,27.34095955,1307.2,1306.8,28.56357996]
[1673233500555,27.338,1307.2,1306.9,4.0]
[1673233500820,27.338,1307.2,1306.9,7.14713]
[1673233501126,8.4873,1307.2,1306.9,18.78789951]
[1673233501341,25.88557759,1307.4,1307.0,19.29134951]
[1673233501501,28.12280839,1307.4,1307.1,4.0]
[1673233501920,0.11600839,1307.4,1307.1,7.98914951]
[1673233502128,23.06232839,1307.4,1307.1,3.98914951]
[1673233503006,30.60616607,1307.4,1307.0,20.79261061]
[1673233503181,34.30267983,1307.4,1307.0,23.20904951]
[1673233504101,34.30563938,1307.4,1306.9,1.2303]
[1673233504266,42.42503938,1307.4,1306.9,23.0943]
[1673233504587,42.42503938,1307.4,1307.0,4.0]
[1673233505594,42.42503938,1307.4,1306.9,27.0943]
[1673233505803,40.73371969,1307.4,1306.9,4.2303]
[1673233506048,15.3001,1307.2,1306.9,0.656]
[1673233506260,22.95015,1307.2,1306.9,0.656]
[1673233506490,28.54698696,1307.2,1307.1,0.797]
[1673233506697,28.54698696,1307.2,1307.1,0.33763152]
[1673233506860,29.00635544,1307.2,1307.1,0.33763152]
[1673233508800,28.54698696,1307.2,1307.1,0.33763152]
[1673233509382,29.94798696,1307.2,1307.1,0.33763152]
[1673233510893,28.54698696,1307.2,1307.1,0.33763152]
[1673233511317,22.95015,1307.2,1307.1,0.33763152]
[1673233511541,28.19231955,1307.3,1307.1,0.33763152]
[1673233511839,19.9654,1307.3,1307.1,0.33763152]
[1673233512009,15.88451839,1307.4,1307.1,0.33763152]
[1673233512217,15.88419839,1307.4,1307.0,9.62935]
[1673233512462,15.88419839,1307.4,1307.1,4.0]
[1673233512657,23.53298839,1307.4,1307.1,4.0]
[1673233513490,31.64114687,1307.4,1307.0,22.57708048]
[1673233513948,39.28993687,1307.4,1307.0,22.57708048]
[1673233514203,39.28993687,1307.4,1307.0,19.9396]
[1673233515433,31.64114687,1307.4,1307.0,19.9396]
[1673233517469,31.64114687,1307.4,1307.1,0.3146076]
[1673233517685,31.18177839,1307.4,1307.1,0.3146076]
[1673233517951,31.18177839,1307.4,1307.1,4.3146076]
[1673233518253,37.6135661,1307.4,1307.1,0.3146076]
[1673233520983,41.6135661,1307.4,1307.1,0.3146076]
[1673233521298,1.404,1307.2,1307.1,0.3146076]
[1673233521461,32.00372,1307.2,1307.1,0.3146076]
[1673233521883,32.46308848,1307.2,1307.1,0.3146076]
[1673233522214,36.10939733,1307.2,1307.1,0.3146076]
[1673233522426,36.10939733,1307.2,1306.8,49.9143]
[1673233522624,44.23349733,1307.2,1306.8,49.9143]
[1673233523258,44.23349733,1307.2,1306.9,0.31628121]
[1673233523597,44.23349733,1307.2,1306.9,4.31628121]
[1673233523932,36.58356733,1307.2,1306.9,0.31628121]
[1673233525296,25.28732848,1307.2,1306.9,0.31628121]
[1673233525459,25.28732848,1307.2,1306.9,4.31628121]
[1673233525813,25.28732848,1307.2,1306.9,0.31628121]
[1673233526225,17.63739848,1307.2,1306.9,4.31628121]
[1673233526555,17.63739848,1307.2,1306.9,8.57413033]
[1673233526788,9.98746848,1307.2,1306.9,8.57413033]
[1673233527150,9.98746848,1307.2,1306.9,16.22330297]
[1673233527371,8.58346848,1307.2,1306.9,23.87499297]
[1673233527813,8.58346848,1307.2,1306.9,16.22330297]
[1673233527980,8.58346848,1307.2,1306.9,4.57171297]
[1673233528416,8.58346848,1307.2,1306.9,8.57171297]
[1673233528762,0.45936848,1307.2,1306.9,20.21250248]
[1673233528954,0.45936848,1307.2,1306.9,20.78680248]
[1673233529337,0.45936848,1307.2,1306.9,13.13516248]
[1673233530546,0.45936848,1307.2,1306.9,12.82129863]
[1673233531019,8.10941848,1307.2,1306.9,12.82129863]
[1673233531235,8.10941848,1307.2,1307.0,0.31534362]
[1673233531445,15.75946848,1307.2,1307.0,4.31534362]
[1673233531763,8.10941848,1307.2,1307.0,5.73912556]
[1673233533063,0.45936848,1307.2,1307.0,5.73912556]
[1673233533266,0.45936848,1307.2,1307.0,13.39006556]
[1673233533591,18.5267,1307.3,1307.0,5.73912556]
[1673233533762,26.17616,1307.3,1307.0,5.73912556]
[1673233533955,18.5267,1307.3,1307.0,5.73912556]
[1673233534167,26.1762,1307.3,1307.0,5.73912556]
[1673233534378,18.5267,1307.3,1307.0,5.73912556]
[1673233535012,18.5267,1307.3,1307.0,13.39016556]
[1673233535657,18.5267,1307.3,1307.0,13.39015556]
[1673233536082,0.11600839,1307.4,1307.1,5.39314951]
[1673233536284,0.11600839,1307.4,1307.1,32.81693102]
[1673233536498,0.11600839,1307.4,1307.2,4.0]
[1673233536704,0.11600839,1307.4,1307.2,15.63871951]
[1673233536947,0.11600839,1307.4,1307.2,7.98914951]
[1673233537167,0.11600839,1307.4,1307.2,10.12183906]
[1673233537340,0.11600839,1307.4,1307.2,6.12183906]
[1673233537547,23.06268839,1307.4,1307.1,16.2476]
[1673233537754,23.06268839,1307.4,1307.1,20.23674951]
[1673233538899,15.41372839,1307.4,1307.1,20.23674951]
[1673233540425,7.76476839,1307.4,1307.1,20.23674951]
[1673233541116,15.41372839,1307.4,1307.1,20.23674951]
[1673233541901,7.76476839,1307.4,1307.1,20.23674951]
[1673233543430,15.41352839,1307.4,1307.1,16.2476]
[1673233545244,23.06228839,1307.4,1307.1,15.6734]
[1673233547646,23.06228839,1307.4,1307.1,7.6734]
[1673233548196,15.41352839,1307.4,1307.1,7.6734]
[1673233548377,23.06228839,1307.4,1307.1,7.6734]
[1673233549017,23.06228839,1307.4,1307.1,15.6734]
[1673233549622,15.41352839,1307.4,1307.1,15.6734]
[1673233549883,23.06228839,1307.4,1307.1,15.6734]
[1673233550193,25.53988874,1307.4,1307.0,0.88964362]
[1673233550413,1.404,1307.2,1307.0,0.31534362]
[1673233550732,22.95156,1307.1,1307.0,0.31534362]
[1673233552341,22.95156,1307.1,1306.8,21.2471]
[1673233552942,15.30104,1307.1,1306.8,21.2471]
[1673233553170,22.95156,1307.1,1306.8,21.2471]
[1673233553381,22.95156,1307.1,1306.9,0.34166944]
[1673233553382,27.08009934,1307.1,1306.9,0.34166944]
[1673233554739,31.08966158,1307.1,1306.9,0.34166944]
[1673233556310,19.31176224,1307.0,1306.9,0.34166944]
[1673233556483,15.3022,1307.0,1306.9,0.34166944]
[1673233557376,22.9533,1307.0,1306.9,0.34166944]
[1673233557747,7.6511,1307.0,1306.9,0.34166944]
[1673233558172,15.78864158,1307.1,1306.9,0.34166944]
[1673233558380,11.08754964,1307.0,1306.9,0.34166944]
[1673233558703,3.43640396,1307.0,1306.9,0.34166944]
[1673233558921,3.43640396,1307.0,1306.9,15.64504944]
[1673233559125,3.43640396,1307.0,1306.9,3.12882438]
[1673233559336,3.43640396,1307.0,1306.9,0.34166944]
[1673233560595,11.08750396,1307.0,1306.9,0.34166944]
[1673233561334,3.43639687,1307.1,1306.9,26.90511895]
[1673233561521,11.65986224,1307.2,1307.0,0.5743]
[1673233561739,4.00956224,1307.1,1307.0,7.5743]
[1673233562002,4.00956224,1307.1,1307.0,3.5743]
[1673233562157,11.65986224,1307.2,1307.0,3.5743]
[1673233562519,3.43643347,1307.1,1307.0,3.5743]
[1673233562734,4.00956224,1307.2,1307.0,3.5743]
[1673233562905,4.00956224,1307.1,1307.0,0.5743]
[1673233563359,4.00956224,1307.1,1306.9,12.90511895]
[1673233563580,3.43762651,1307.0,1306.9,15.83927085]
[1673233564521,3.43762651,1307.0,1306.9,19.83927085]
[1673233564944,3.43762651,1307.1,1306.9,42.79434085]
[1673233565250,4.00956224,1307.3,1307.1,15.30104]
[1673233565471,3.43744636,1307.2,1307.1,21.98428946]
[1673233565664,3.43744636,1307.2,1307.1,14.33376946]
[1673233566155,3.43744636,1307.2,1307.1,18.33376946]
[1673233566612,3.43744636,1307.2,1307.1,14.33376946]
[1673233567121,3.43361797,1307.2,1307.1,21.98428946]
[1673233567518,3.43361797,1307.2,1307.1,14.33376946]
[1673233567781,4.00956224,1307.3,1307.1,6.68324946]
[1673233567934,4.00956224,1307.3,1307.1,14.33376946]
[1673233568288,0.6366,1307.2,1307.1,6.68324946]
[1673233569247,0.6366,1307.2,1307.1,18.33376946]
[1673233569420,0.6366,1307.2,1307.1,14.33376946]
[1673233569854,0.6366,1307.2,1307.1,6.68324946]
[1673233571881,0.6366,1307.2,1307.1,14.33376946]
[1673233572248,0.6366,1307.2,1307.1,21.98428946]
[1673233572453,0.6366,1307.2,1307.1,29.63480946]
[1673233572668,0.6366,1307.2,1307.1,33.63480946]
[1673233573215,4.0739878,1307.2,1307.1,25.98428946]
[1673233573626,4.0739878,1307.2,1307.1,26.55848946]
[1673233573823,3.4373878,1307.2,1307.1,26.55848946]
[1673233574452,3.4373878,1307.2,1307.1,22.55848946]
[1673233575082,3.4373878,1307.2,1307.1,26.55848946]
[1673233575712,3.4373878,1307.2,1307.1,25.98428946]
[1673233575924,3.4373878,1307.2,1307.1,18.33376946]
[1673233576608,3.4373878,1307.2,1307.1,14.33376946]
[1673233577230,3.4373878,1307.2,1307.1,21.98428946]
[1673233577765,3.4373878,1307.2,1307.1,14.33376946]
[1673233578343,3.4373878,1307.2,1307.1,6.68324946]
[1673233578608,3.4373878,1307.2,1307.1,3.98914951]
[1673233581142,7.64993,1307.2,1307.1,3.98914951]
[1673233581501,11.65949224,1307.2,1307.1,3.98914951]
[1673233581855,4.00956224,1307.2,1307.1,3.98914951]
[1673233582013,4.00956224,1307.2,1307.0,0.00697517]
[1673233582228,3.43717314,1307.1,1307.0,6.99612468]
[1673233583314,3.43717314,1307.1,1307.0,3.99612468]
[1673233586960,3.43717314,1307.1,1306.9,20.84866944]
[1673233587215,3.43717314,1307.1,1306.9,12.33081895]
[1673233588251,3.43717314,1307.1,1306.9,16.33081895]
[1673233588846,3.43717314,1307.1,1306.9,16.32830386]
[1673233589053,3.43717314,1307.1,1306.9,12.32830386]
[1673233589390,11.76097314,1307.2,1306.9,23.97991386]
[1673233589828,3.43717314,1307.1,1306.9,19.97991386]
[1673233591374,3.43717314,1307.1,1306.9,39.28329386]
[1673233591583,3.43717314,1307.1,1306.9,31.63160386]
[1673233593099,3.43717314,1307.1,1306.9,27.63160386]
[1673233593304,3.43717314,1307.1,1306.9,31.63160386]
[1673233593497,3.43717314,1307.1,1306.9,27.63160386]
[1673233593697,3.43717314,1307.1,1306.9,19.97991386]
[1673233593901,3.43717314,1307.1,1307.0,3.98914951]
[1673233596462,3.43717314,1307.1,1307.0,10.92390514]
[1673233597704,3.43717314,1307.1,1307.0,3.27280514]
[1673233599324,3.43717314,1307.1,1307.0,18.57500514]
[1673233599814,3.43717314,1307.1,1307.0,10.92390514]
[1673233600338,3.43717314,1307.1,1307.0,3.27280514]
[1673233600578,3.43717314,1307.1,1307.0,5.19912609]
[1673233603434,3.43717314,1307.1,1307.0,5.54012155]
[1673233604645,3.43717314,1307.1,1307.0,13.19122155]
[1673233604905,3.43717314,1307.1,1307.0,5.54012155]
[1673233605469,3.43717314,1307.1,1307.0,3.6138006]
[1673233607317,3.43717314,1307.1,1307.0,11.2649006]
[1673233608528,8.3238,1307.2,1307.0,11.2649006]
[1673233608529,11.76097314,1307.2,1307.0,11.2649006]
[1673233608705,11.76097314,1307.2,1307.0,22.9160006]
[1673233608892,3.43717314,1307.2,1307.0,18.9160006]
[1673233609840,31.39343269,1307.3,1307.1,3.98914951]
[1673233610052,23.26007314,1307.3,1307.1,26.94070951]
[1673233610734,3.43717314,1307.3,1307.1,26.94070951]
[1673233611058,3.43717314,1307.3,1307.2,11.63907951]
[1673233612478,22.99486224,1307.5,1307.2,28.69993951]
[1673233612696,18.9853,1307.5,1307.3,3.98914951]
[1673233613013,22.99486224,1307.5,1307.3,3.98914951]
[1673233613228,20.11917224,1307.6,1307.3,3.98914951]
[1673233613578,20.11917224,1307.6,1307.3,5.45730025]
[1673233614086,19.30656224,1307.5,1307.3,5.45730025]
[1673233614268,19.30656224,1307.5,1307.3,3.98914951]
[1673233614897,11.65787224,1307.5,1307.3,3.98914951]
[1673233615104,19.30605224,1307.5,1307.3,3.98914951]
[1673233615351,11.65774224,1307.5,1307.4,0.33859636]
[1673233616153,4.00956224,1307.5,1307.4,0.33859636]
[1673233616358,20.11917224,1307.6,1307.3,7.98914951]
[1673233616627,27.76710224,1307.6,1307.3,7.98914951]
[1673233617226,27.76710224,1307.6,1307.3,9.74878525]
[1673233617422,27.76710224,1307.6,1307.4,0.33859636]
[1673233617631,23.75754,1307.6,1307.4,0.33859636]
[1673233617856,23.75754,1307.6,1307.4,4.33859636]
[1673233618082,27.76710224,1307.6,1307.4,4.33859636]
[1673233618408,27.76710224,1307.6,1307.4,0.33859636]
[1673233618626,3.43504459,1307.5,1307.4,0.33859636]
[1673233618774,11.08322459,1307.5,1307.4,1.22312498]
[1673233620252,18.73140459,1307.5,1307.4,1.22312498]
[1673233620470,3.43504459,1307.5,1307.4,1.22312498]
[1673233621866,11.08322459,1307.5,1307.4,1.22312498]
[1673233622893,3.43504459,1307.5,1307.4,1.22312498]
[1673233624495,11.08322459,1307.5,1307.4,1.22312498]
[1673233624872,18.73140459,1307.5,1307.4,1.22312498]
[1673233625553,11.08322459,1307.5,1307.4,1.22312498]
[1673233625728,39.77348048,1307.7,1307.4,1.22312498]
[1673233625729,31.39653777,1307.7,1307.5,4.0]
[1673233625937,31.39653777,1307.7,1307.5,9.75014951]
[1673233625938,30.81984346,1307.7,1307.5,9.75014951]
[1673233626284,30.81984346,1307.7,1307.5,13.39831951]
[1673233626604,0.00167553,1307.7,1307.6,3.98914951]
[1673233626834,0.00167553,1307.7,1307.6,11.63673951]
[1673233627130,0.00167553,1307.7,1307.6,3.98914951]
[1673233630067,0.00167553,1307.7,1307.6,4.66894951]
[1673233632369,0.00167553,1307.7,1307.6,12.31653951]
[1673233632563,0.00167553,1307.7,1307.6,7.37532693]
[1673233637547,7.64868553,1307.7,1307.6,4.66894951]
[1673233638133,15.29569553,1307.7,1307.6,0.6798]
[1673233639381,7.64868553,1307.7,1307.6,0.6798]
[1673233639601,0.00167553,1307.7,1307.6,0.6798]
[1673233639818,11.07702956,1307.7,1307.6,0.6798]
[1673233640041,21.00030629,1307.7,1307.6,0.6798]
[1673233640590,30.9815345,1307.7,1307.6,0.6798]
[1673233640959,31.44090298,1307.7,1307.6,0.6798]
[1673233641908,35.44090298,1307.7,1307.4,0.33859636]
[1673233642108,3.42970235,1307.5,1307.4,0.33859636]
[1673233642316,27.29331259,1307.5,1307.4,0.33859636]
[1673233642636,27.75268107,1307.5,1307.4,0.33859636]
[1673233645000,29.51368107,1307.5,1307.4,0.33859636]
[1673233646585,28.59461083,1307.5,1307.4,0.33859636]
[1673233647410,20.48706235,1307.5,1307.4,0.33859636]
[1673233648536,12.83888235,1307.5,1307.4,0.33859636]
[1673233649195,3.42970235,1307.5,1307.4,0.33859636]
[1673233649422,3.42970235,1307.5,1307.4,15.63611636]
[1673233649580,3.42970235,1307.5,1307.4,7.98735636]
[1673233650767,13.48100235,1307.6,1307.4,7.98735636]
[1673233651190,5.19070235,1307.6,1307.4,15.63611636]
[1673233651524,5.19070235,1307.6,1307.4,7.98735636]
[1673233652432,3.42970235,1307.5,1307.4,0.33859636]
[1673233653597,3.42970235,1307.5,1307.4,7.98735636]
[1673233653807,3.42970235,1307.5,1307.4,0.33859636]
[1673233654024,3.42970235,1307.5,1307.4,7.98735636]
[1673233654200,3.42970235,1307.5,1307.4,0.33859636]
[1673233656557,3.42970235,1307.5,1307.4,27.27402587]
[1673233656774,3.42970235,1307.5,1307.4,30.76633046]
[1673233657486,3.42970235,1307.5,1307.4,23.11757046]
[1673233657948,3.42970235,1307.5,1307.4,15.46881046]
[1673233658603,3.42970235,1307.5,1307.4,7.82005046]
[1673233658774,3.42970235,1307.5,1307.4,4.32774587]
[1673233658984,3.42970235,1307.6,1307.4,4.32774587]
[1673233659180,3.42970235,1307.6,1307.5,3.98914951]
[1673233659918,11.07729235,1307.6,1307.5,3.98914951]
[1673233661648,3.42970235,1307.6,1307.5,3.98914951]
[1673233662169,26.95233224,1307.6,1307.4,0.33859636]
[1673233662325,26.38077492,1307.5,1307.4,4.32774587]
[1673233662791,18.73259492,1307.5,1307.4,4.32457204]
[1673233662974,3.43623492,1307.5,1307.4,4.32457204]
[1673233664593,11.08441492,1307.5,1307.4,4.32457204]
[1673233665272,3.43623492,1307.5,1307.4,0.33542253]
[1673233667268,3.43623492,1307.6,1307.4,4.32457204]
[1673233668218,3.43623492,1307.5,1307.4,4.32457204]
[1673233668430,11.08403492,1307.6,1307.4,4.32457204]
[1673233668798,3.43623492,1307.6,1307.4,4.32457204]
[1673233669022,11.52071175,1307.5,1306.8,1.14543398]
[1673233669177,11.52071175,1307.5,1306.7,22.07760281]
[1673233669178,7.65081,1307.1,1306.7,22.07760281]
[1673233669374,18.73927553,1307.1,1306.9,0.7053]
[1673233669584,3.43765553,1307.0,1306.9,0.7053]
[1673233669792,3.44061508,1307.0,1306.9,0.7053]
[1673233670044,3.44061508,1307.0,1306.8,8.0]
[1673233670448,7.65413955,1307.0,1306.8,8.0]
[1673233671310,13.77706244,1307.0,1306.8,8.0]
[1673233671529,10.33940691,1307.0,1306.7,0.07760281]